[Event "*** Titled Tuesday Blitz"]
[Site "Chess.com"]
[Date "2021.04.20"]
[Round "4"]
[White "zubridis"]
[Black "1977Ivan"]
[Result "1/2-1/2"]
[WhiteElo "2531"]
[BlackElo "2726"]
[TimeControl "180+1"]
[EndTime "10:39:25 PDT"]
[Termination "Game drawn by repetition"]

1. e4 {[%clk 0:03:00.9]} 1... g6 {[%clk 0:02:59.7]} 2. d4 {[%clk 0:02:59.4]}
2... c6 {[%clk 0:02:59.8]} 3. Nc3 {[%clk 0:02:58.7]} 3... d5 {[%clk 0:02:59.3]}
4. h3 {[%clk 0:02:56]} 4... Bg7 {[%clk 0:02:59]} 5. Nf3 {[%clk 0:02:55.7]} 5...
dxe4 {[%clk 0:02:59.5]} 6. Nxe4 {[%clk 0:02:54.6]} 6... Nf6 {[%clk 0:03:00]} 7.
Nxf6+ {[%clk 0:02:53]} 7... exf6 {[%clk 0:03:00.9]} 8. Bc4 {[%clk 0:02:49.4]}
8... Qe7+ {[%clk 0:02:53.7]} 9. Qe2 {[%clk 0:02:44.5]} 9... Qxe2+ {[%clk
0:02:52.9]} 10. Kxe2 {[%clk 0:02:39.4]} 10... O-O {[%clk 0:02:53.8]} 11. Rd1
{[%clk 0:02:37.7]} 11... Nd7 {[%clk 0:02:53.4]} 12. Bb3 {[%clk 0:02:27]} 12...
a5 {[%clk 0:02:48.6]} 13. a3 {[%clk 0:02:23.8]} 13... b5 {[%clk 0:02:47.2]} 14.
Kf1 {[%clk 0:02:16.8]} 14... Nb6 {[%clk 0:02:45.7]} 15. Bf4 {[%clk 0:02:12.5]}
15... Bf5 {[%clk 0:02:40.9]} 16. Rd2 {[%clk 0:02:02.7]} 16... Be4 {[%clk
0:02:29.6]} 17. Re1 {[%clk 0:01:55.7]} 17... f5 {[%clk 0:02:12]} 18. Bd6 {[%clk
0:01:47.8]} 18... Rfe8 {[%clk 0:02:07]} 19. Bc7 {[%clk 0:01:37.6]} 19... Nd5
{[%clk 0:01:44.5]} 20. Bd6 {[%clk 0:01:34.6]} 20... a4 {[%clk 0:01:37.6]} 21.
Ba2 {[%clk 0:01:32.8]} 21... Bxf3 {[%clk 0:01:31.1]} 22. gxf3 {[%clk 0:01:27]}
22... Rxe1+ {[%clk 0:01:29.6]} 23. Kxe1 {[%clk 0:01:27.9]} 23... Re8+ {[%clk
0:01:28.8]} 24. Kd1 {[%clk 0:01:22.8]} 24... Bh6 {[%clk 0:01:25.3]} 25. Re2
{[%clk 0:01:03]} 25... Rxe2 {[%clk 0:01:24.1]} 26. Kxe2 {[%clk 0:01:03.9]} 26...
Bc1 {[%clk 0:01:23]} 27. c3 {[%clk 0:00:54.3]} 27... Nb6 {[%clk 0:00:32.1]} 28.
f4 {[%clk 0:00:39.8]} 28... Nc4 {[%clk 0:00:27.6]} 29. Bxc4 {[%clk 0:00:35.7]}
29... bxc4 {[%clk 0:00:28.5]} 30. Kd1 {[%clk 0:00:35]} 30... Bxb2 {[%clk
0:00:24.9]} 31. Kc2 {[%clk 0:00:34.9]} 31... Ba1 {[%clk 0:00:22.7]} 32. Bb4
{[%clk 0:00:34.6]} 32... f6 {[%clk 0:00:22]} 33. Kb1 {[%clk 0:00:32.9]} 33...
Kf7 {[%clk 0:00:19.9]} 34. Kxa1 {[%clk 0:00:32.1]} 34... Ke6 {[%clk 0:00:20]}
35. Kb1 {[%clk 0:00:30.8]} 35... g5 {[%clk 0:00:20.3]} 36. f3 {[%clk 0:00:23]}
36... h5 {[%clk 0:00:19.7]} 37. fxg5 {[%clk 0:00:17.5]} 37... fxg5 {[%clk
0:00:20.6]} 38. Ba5 {[%clk 0:00:17]} 38... f4 {[%clk 0:00:16.1]} 39. Bd8 {[%clk
0:00:14.9]} 39... Kf5 {[%clk 0:00:16.5]} 40. Kc2 {[%clk 0:00:14.6]} 40... g4
{[%clk 0:00:16.8]} 41. fxg4+ {[%clk 0:00:14.4]} 41... hxg4 {[%clk 0:00:17.7]}
42. hxg4+ {[%clk 0:00:14.2]} 42... Kxg4 {[%clk 0:00:17.5]} 43. Kd2 {[%clk
0:00:14.4]} 43... Kf3 {[%clk 0:00:16.1]} 44. Bc7 {[%clk 0:00:14.3]} 44... Ke4
{[%clk 0:00:16]} 45. Be5 {[%clk 0:00:12.6]} 45... f3 {[%clk 0:00:15.6]} 46. Bg7
{[%clk 0:00:12.1]} 46... Kf4 {[%clk 0:00:10.6]} 47. Bh8 {[%clk 0:00:08.9]} 47...
Ke4 {[%clk 0:00:10.6]} 48. Bg7 {[%clk 0:00:06.2]} 48... Kf4 {[%clk 0:00:10.5]}
49. Bh6+ {[%clk 0:00:06.2]} 49... Ke4 {[%clk 0:00:10.5]} 50. Be3 {[%clk
0:00:06]} 50... Kf5 {[%clk 0:00:09.5]} 51. Bg1 {[%clk 0:00:06]} 51... Ke4 {[%clk
0:00:09.4]} 52. Bf2 {[%clk 0:00:06.5]} 52... Kf4 {[%clk 0:00:09.6]} 53. Kd1
{[%clk 0:00:05.8]} 53... Ke4 {[%clk 0:00:09.2]} 54. Kd2 {[%clk 0:00:05.9]} 54...
Kf4 {[%clk 0:00:09.6]} 55. Kc2 {[%clk 0:00:05.7]} 55... Ke4 {[%clk 0:00:09.6]}
56. Kd1 {[%clk 0:00:05.8]} 56... Kd3 {[%clk 0:00:09.4]} 57. Be1 {[%clk
0:00:05.4]} 57... f2 {[%clk 0:00:09.2]} 58. Bxf2 {[%clk 0:00:05.3]} 58... Kxc3
{[%clk 0:00:09.8]} 59. Kc1 {[%clk 0:00:05.2]} 59... Kb3 {[%clk 0:00:08.8]} 60.
Be1 {[%clk 0:00:05.2]} 60... c3 {[%clk 0:00:06.7]} 61. Kb1 {[%clk 0:00:04.8]}
61... Kxa3 {[%clk 0:00:02.7]} 62. Kc2 {[%clk 0:00:04.5]} 62... Kb4 {[%clk
0:00:02.3]} 63. Bxc3+ {[%clk 0:00:05.3]} 63... Kc4 {[%clk 0:00:02.7]} 64. Ba1
{[%clk 0:00:04.7]} 64... a3 {[%clk 0:00:02.6]} 65. Kd2 {[%clk 0:00:03.2]} 65...
Kb3 {[%clk 0:00:02.4]} 66. Kd3 {[%clk 0:00:02.5]} 66... Ka2 {[%clk 0:00:02.6]}
67. Bc3 {[%clk 0:00:02.3]} 67... Kb3 {[%clk 0:00:02.7]} 68. Ba1 {[%clk
0:00:02.5]} 68... Ka2 {[%clk 0:00:02.7]} 69. Bc3 {[%clk 0:00:02.7]} 69... Kb3
{[%clk 0:00:02.7]} 70. Ba1 {[%clk 0:00:02.7]} 1/2-1/2

[Event "*** Titled Tuesday Blitz"]
[Site "Chess.com"]
[Date "2021.04.20"]
[Round "4"]
[White "shineatchess"]
[Black "Nils_03"]
[Result "0-1"]
[WhiteElo "2208"]
[BlackElo "2409"]
[TimeControl "180+1"]
[EndTime "10:39:36 PDT"]
[Termination "Nils_03 won by checkmate"]

1. e4 {[%clk 0:03:00.9]} 1... c5 {[%clk 0:03:00.2]} 2. c3 {[%clk 0:02:59.2]}
2... d5 {[%clk 0:02:59]} 3. exd5 {[%clk 0:02:58.9]} 3... Qxd5 {[%clk 0:02:59.9]}
4. d4 {[%clk 0:02:58.9]} 4... cxd4 {[%clk 0:03:00.1]} 5. cxd4 {[%clk 0:02:58.3]}
5... Nf6 {[%clk 0:03:00.5]} 6. Nc3 {[%clk 0:02:56.8]} 6... Qd8 {[%clk
0:03:00.5]} 7. Bc4 {[%clk 0:02:50.6]} 7... e6 {[%clk 0:02:59.6]} 8. Nf3 {[%clk
0:02:50.5]} 8... Be7 {[%clk 0:02:59.8]} 9. O-O {[%clk 0:02:48.7]} 9... O-O
{[%clk 0:03:00.2]} 10. Bg5 {[%clk 0:02:42.5]} 10... Nbd7 {[%clk 0:03:00.1]} 11.
Re1 {[%clk 0:02:38.6]} 11... Nb6 {[%clk 0:02:59.6]} 12. Bd3 {[%clk 0:02:35.5]}
12... Bd7 {[%clk 0:02:59.6]} 13. Qe2 {[%clk 0:02:31.4]} 13... Nbd5 {[%clk
0:02:54.8]} 14. Rad1 {[%clk 0:02:27.4]} 14... Nxc3 {[%clk 0:02:52.9]} 15. bxc3
{[%clk 0:02:25.7]} 15... Nd5 {[%clk 0:02:52.2]} 16. Bd2 {[%clk 0:02:17]} 16...
Rc8 {[%clk 0:02:49.8]} 17. c4 {[%clk 0:02:06.6]} 17... Nb4 {[%clk 0:02:44.4]}
18. Bb1 {[%clk 0:02:06.3]} 18... Nc6 {[%clk 0:02:22.8]} 19. d5 {[%clk 0:02:01]}
19... Nb8 {[%clk 0:02:22.9]} 20. d6 {[%clk 0:01:46.5]} 20... Bf6 {[%clk
0:02:07.9]} 21. Qd3 {[%clk 0:01:40.3]} 21... g6 {[%clk 0:02:07.7]} 22. Bh6
{[%clk 0:01:39]} 22... Re8 {[%clk 0:02:05.9]} 23. Ne5 {[%clk 0:01:30.9]} 23...
Nc6 {[%clk 0:02:04]} 24. Ng4 {[%clk 0:01:05.5]} 24... Bh8 {[%clk 0:02:00.4]} 25.
Qe3 {[%clk 0:00:58.4]} 25... Qh4 {[%clk 0:01:55.8]} 26. h3 {[%clk 0:00:44.9]}
26... Qd8 {[%clk 0:01:37.5]} 27. Bg5 {[%clk 0:00:37.1]} 27... f6 {[%clk
0:01:37.3]} 28. Bh4 {[%clk 0:00:35.4]} 28... Bg7 {[%clk 0:01:27.2]} 29. c5
{[%clk 0:00:27.4]} 29... Kh8 {[%clk 0:01:23.2]} 30. a3 {[%clk 0:00:21.8]} 30...
e5 {[%clk 0:01:22.4]} 31. Ba2 {[%clk 0:00:17.5]} 31... Rf8 {[%clk 0:01:19.2]}
32. Kh1 {[%clk 0:00:12.4]} 32... Qe8 {[%clk 0:01:14.7]} 33. Nh2 {[%clk
0:00:11.5]} 33... Nd4 {[%clk 0:01:08.9]} 34. Qc1 {[%clk 0:00:08.5]} 34... Nf5
{[%clk 0:01:06.7]} 35. Bg3 {[%clk 0:00:08.1]} 35... Nxg3+ {[%clk 0:01:04.5]} 36.
fxg3 {[%clk 0:00:09]} 36... b6 {[%clk 0:00:57.4]} 37. Re2 {[%clk 0:00:07.2]}
37... Rxc5 {[%clk 0:00:57.1]} 38. Rc2 {[%clk 0:00:07]} 38... Qc8 {[%clk
0:00:53.6]} 39. Rdd2 {[%clk 0:00:06.4]} 39... f5 {[%clk 0:00:49.2]} 40. Rxc5
{[%clk 0:00:05.9]} 40... bxc5 {[%clk 0:00:48.7]} 41. Rc2 {[%clk 0:00:06.2]}
41... Qa6 {[%clk 0:00:43.2]} 42. Rxc5 {[%clk 0:00:05.7]} 42... Qxd6 {[%clk
0:00:42.9]} 43. Nf3 {[%clk 0:00:06.3]} 43... h6 {[%clk 0:00:35.9]} 44. Rd5
{[%clk 0:00:06.3]} 44... Qc6 {[%clk 0:00:32.1]} 45. Qd1 {[%clk 0:00:06.4]} 45...
Bc8 {[%clk 0:00:22.4]} 46. Nxe5 {[%clk 0:00:06.5]} 46... Bxe5 {[%clk 0:00:19.3]}
47. Rxe5 {[%clk 0:00:07.4]} 47... Bb7 {[%clk 0:00:18.9]} 48. Re2 {[%clk
0:00:06]} 48... Qf6 {[%clk 0:00:16.4]} 49. Qb1 {[%clk 0:00:05.4]} 49... Be4
{[%clk 0:00:16.1]} 50. Qb2 {[%clk 0:00:05.4]} 50... Qxb2 {[%clk 0:00:15.3]} 51.
Rxb2 {[%clk 0:00:06.3]} 51... Rc8 {[%clk 0:00:15.6]} 52. Kh2 {[%clk 0:00:06.2]}
52... h5 {[%clk 0:00:14.2]} 53. Bb1 {[%clk 0:00:05.4]} 53... Kg7 {[%clk
0:00:12.5]} 54. a4 {[%clk 0:00:05]} 54... Rc4 {[%clk 0:00:11.8]} 55. a5 {[%clk
0:00:03.1]} 55... Ra4 {[%clk 0:00:11.5]} 56. Bxe4 {[%clk 0:00:03.1]} 56... fxe4
{[%clk 0:00:11.3]} 57. Rb7+ {[%clk 0:00:04]} 57... Kf6 {[%clk 0:00:11.7]} 58.
Rxa7 {[%clk 0:00:04.9]} 58... e3 {[%clk 0:00:12.2]} 59. Kg1 {[%clk 0:00:03.6]}
59... Ra1+ {[%clk 0:00:11.9]} 60. Kh2 {[%clk 0:00:04]} 60... e2 {[%clk
0:00:12.5]} 61. Ra6+ {[%clk 0:00:03.7]} 61... Kg7 {[%clk 0:00:10.8]} 62. Ra7+
{[%clk 0:00:03.6]} 62... Kh6 {[%clk 0:00:10.8]} 63. Re7 {[%clk 0:00:03.6]} 63...
e1=Q {[%clk 0:00:10.7]} 64. Rxe1 {[%clk 0:00:04.1]} 64... Rxe1 {[%clk
0:00:11.2]} 65. a6 {[%clk 0:00:04.9]} 65... Ra1 {[%clk 0:00:11.8]} 66. a7 {[%clk
0:00:05.8]} 66... Rxa7 {[%clk 0:00:12.3]} 67. g4 {[%clk 0:00:05.7]} 67... Kg7
{[%clk 0:00:12.5]} 68. gxh5 {[%clk 0:00:05]} 68... gxh5 {[%clk 0:00:13.4]} 69.
h4 {[%clk 0:00:05.9]} 69... Kh6 {[%clk 0:00:14.2]} 70. Kh3 {[%clk 0:00:06.8]}
70... Ra4 {[%clk 0:00:14.5]} 71. g3 {[%clk 0:00:07.7]} 71... Rg4 {[%clk
0:00:15]} 72. Kh2 {[%clk 0:00:08.5]} 72... Kg6 {[%clk 0:00:15.9]} 73. Kh3 {[%clk
0:00:09.4]} 73... Kf5 {[%clk 0:00:16.8]} 74. Kh2 {[%clk 0:00:10.3]} 74... Ke4
{[%clk 0:00:17.7]} 75. Kg2 {[%clk 0:00:11.2]} 75... Ke3 {[%clk 0:00:17.5]} 76.
Kh3 {[%clk 0:00:11.2]} 76... Kf3 {[%clk 0:00:16.7]} 77. Kh2 {[%clk 0:00:11.5]}
77... Rxg3 {[%clk 0:00:17.1]} 78. Kh1 {[%clk 0:00:11.9]} 78... Rh3+ {[%clk
0:00:16.3]} 79. Kg1 {[%clk 0:00:12]} 79... Rxh4 {[%clk 0:00:16.8]} 80. Kf1
{[%clk 0:00:12]} 80... Rh1# {[%clk 0:00:17.7]} 0-1

[Event "*** Titled Tuesday Blitz"]
[Site "Chess.com"]
[Date "2021.04.20"]
[Round "4"]
[White "jannat65"]
[Black "not_najdorfs_player"]
[Result "0-1"]
[WhiteElo "2020"]
[BlackElo "2371"]
[TimeControl "180+1"]
[EndTime "10:39:38 PDT"]
[Termination "not_najdorfs_player won on time"]

1. e4 {[%clk 0:03:00.9]} 1... d6 {[%clk 0:02:42]} 2. Nf3 {[%clk 0:02:59.7]} 2...
Nf6 {[%clk 0:02:40.7]} 3. Nc3 {[%clk 0:02:59.5]} 3... Nbd7 {[%clk 0:02:37.3]} 4.
d4 {[%clk 0:02:59.4]} 4... e5 {[%clk 0:02:36]} 5. dxe5 {[%clk 0:02:57.9]} 5...
dxe5 {[%clk 0:02:35.9]} 6. Bc4 {[%clk 0:02:54]} 6... Be7 {[%clk 0:02:35]} 7. O-O
{[%clk 0:02:51.8]} 7... c6 {[%clk 0:02:34.7]} 8. h3 {[%clk 0:02:49.2]} 8... Qc7
{[%clk 0:02:31.4]} 9. Qe2 {[%clk 0:02:41.9]} 9... Nf8 {[%clk 0:02:23.3]} 10. Ng5
{[%clk 0:02:35.7]} 10... Ne6 {[%clk 0:02:21.2]} 11. Bxe6 {[%clk 0:02:33.1]}
11... Bxe6 {[%clk 0:02:21.1]} 12. Nxe6 {[%clk 0:02:33.1]} 12... fxe6 {[%clk
0:02:22]} 13. Be3 {[%clk 0:02:26]} 13... h6 {[%clk 0:02:19.6]} 14. Qc4 {[%clk
0:02:22.3]} 14... Qc8 {[%clk 0:02:01.4]} 15. f4 {[%clk 0:02:20.7]} 15... exf4
{[%clk 0:02:00.4]} 16. Bxf4 {[%clk 0:02:18.1]} 16... b5 {[%clk 0:01:59]} 17. Qb3
{[%clk 0:02:15.7]} 17... O-O {[%clk 0:01:34]} 18. Rad1 {[%clk 0:02:14.7]} 18...
b4 {[%clk 0:01:30.5]} 19. Ne2 {[%clk 0:02:02.9]} 19... Bc5+ {[%clk 0:01:30]} 20.
Be3 {[%clk 0:01:59.3]} 20... Nxe4 {[%clk 0:01:27.1]} 21. Rxf8+ {[%clk 0:01:49]}
21... Qxf8 {[%clk 0:01:10.3]} 22. Qxe6+ {[%clk 0:01:46]} 22... Kh8 {[%clk
0:01:10.4]} 23. Qxe4 {[%clk 0:01:43.5]} 23... Re8 {[%clk 0:00:59.4]} 24. Bxc5
{[%clk 0:01:38.8]} 24... Qxc5+ {[%clk 0:00:58.9]} 25. Qd4 {[%clk 0:01:39.2]}
25... Qxc2 {[%clk 0:00:58.7]} 26. Ng3 {[%clk 0:01:31.4]} 26... c5 {[%clk
0:00:56.2]} 27. Qd7 {[%clk 0:01:26.9]} 27... Qg6 {[%clk 0:00:49.6]} 28. Rd6
{[%clk 0:01:14.6]} 28... Qb1+ {[%clk 0:00:21.8]} 29. Kh2 {[%clk 0:01:11.6]}
29... Rf8 {[%clk 0:00:20.6]} 30. Qe7 {[%clk 0:00:57.8]} 30... Rg8 {[%clk
0:00:18.5]} 31. Nh5 {[%clk 0:00:53.6]} 31... Qxb2 {[%clk 0:00:17.8]} 32. Qe6
{[%clk 0:00:39.5]} 32... Qc2 {[%clk 0:00:15.7]} 33. Rd7 {[%clk 0:00:33.2]} 33...
Qf2 {[%clk 0:00:09.6]} 34. Rf7 {[%clk 0:00:28.7]} 34... Qh4 {[%clk 0:00:09.5]}
35. Ng3 {[%clk 0:00:26.6]} 35... Qg5 {[%clk 0:00:09]} 36. Re7 {[%clk 0:00:25.6]}
36... a5 {[%clk 0:00:08.7]} 37. Re8 {[%clk 0:00:25.6]} 37... Rxe8 {[%clk
0:00:08]} 38. Qxe8+ {[%clk 0:00:26.5]} 38... Kh7 {[%clk 0:00:08.9]} 39. Qe4+
{[%clk 0:00:26.3]} 39... Kh8 {[%clk 0:00:07.7]} 40. Qa8+ {[%clk 0:00:26.2]}
40... Kh7 {[%clk 0:00:07.6]} 41. Qxa5 {[%clk 0:00:26.6]} 41... Qe3 {[%clk
0:00:07.8]} 42. Qa4 {[%clk 0:00:22.1]} 42... Qe5 {[%clk 0:00:07.7]} 43. Qb3
{[%clk 0:00:21.4]} 43... h5 {[%clk 0:00:08]} 44. Kg1 {[%clk 0:00:18.9]} 44...
Qd4+ {[%clk 0:00:07.4]} 45. Kh1 {[%clk 0:00:16.8]} 45... h4 {[%clk 0:00:07.8]}
46. Nf1 {[%clk 0:00:15.6]} 46... Qf4 {[%clk 0:00:06.3]} 47. Qf3 {[%clk
0:00:15.8]} 47... Qxf3 {[%clk 0:00:05.7]} 48. gxf3 {[%clk 0:00:16.7]} 48... c4
{[%clk 0:00:06.1]} 49. Ne3 {[%clk 0:00:16.8]} 49... b3 {[%clk 0:00:05.6]} 50.
axb3 {[%clk 0:00:17]} 50... cxb3 {[%clk 0:00:06.5]} 51. Nd1 {[%clk 0:00:17.5]}
51... Kg6 {[%clk 0:00:06.8]} 52. Kg2 {[%clk 0:00:17.7]} 52... Kf5 {[%clk
0:00:07.4]} 53. Kf2 {[%clk 0:00:17.3]} 53... Kf4 {[%clk 0:00:07.9]} 54. Kg2
{[%clk 0:00:17.2]} 54... g5 {[%clk 0:00:08.3]} 55. Kf2 {[%clk 0:00:16.9]} 55...
Kf5 {[%clk 0:00:07.9]} 56. Ke3 {[%clk 0:00:16.9]} 56... Ke5 {[%clk 0:00:08]} 57.
Nb2 {[%clk 0:00:11.2]} 57... Kd5 {[%clk 0:00:08.1]} 58. f4 {[%clk 0:00:10.4]}
58... gxf4+ {[%clk 0:00:07.9]} 59. Kxf4 {[%clk 0:00:11.3]} 59... Kd4 {[%clk
0:00:08.8]} 60. Kg5 {[%clk 0:00:10.7]} 60... Kc3 {[%clk 0:00:09.3]} 61. Na4+
{[%clk 0:00:10.2]} 61... Kb4 {[%clk 0:00:09.6]} 62. Nb2 {[%clk 0:00:10]} 62...
Ka3 {[%clk 0:00:10]} 63. Nd3 {[%clk 0:00:09.5]} 63... Ka2 {[%clk 0:00:08.1]} 64.
Kxh4 {[%clk 0:00:09.3]} 64... Kb1 {[%clk 0:00:08.5]} 65. Kg4 {[%clk 0:00:07.8]}
65... Kc2 {[%clk 0:00:08.9]} 66. Nb4+ {[%clk 0:00:08.3]} 66... Kc3 {[%clk
0:00:08.8]} 67. Nd5+ {[%clk 0:00:08.4]} 67... Kd4 {[%clk 0:00:07.5]} 68. Nb4
{[%clk 0:00:01.5]} 68... b2 {[%clk 0:00:07.6]} 69. Nc2+ {[%clk 0:00:02.4]} 69...
Kc3 {[%clk 0:00:07.7]} 70. Ne3 {[%clk 0:00:02.2]} 70... b1=Q {[%clk 0:00:07.3]}
71. h4 {[%clk 0:00:02.3]} 71... Qb4+ {[%clk 0:00:06.4]} 72. Kg5 {[%clk
0:00:01.2]} 72... Qc5+ {[%clk 0:00:05.2]} 0-1

[Event "*** Titled Tuesday Blitz"]
[Site "Chess.com"]
[Date "2021.04.20"]
[Round "4"]
[White "NTBT_DHS"]
[Black "eljanov"]
[Result "1-0"]
[WhiteElo "2717"]
[BlackElo "2870"]
[TimeControl "180+1"]
[EndTime "10:39:39 PDT"]
[Termination "NTBT_DHS won on time"]

1. d4 {[%clk 0:03:00.9]} 1... Nf6 {[%clk 0:02:59]} 2. c4 {[%clk 0:02:58.9]} 2...
e6 {[%clk 0:02:59.2]} 3. Nf3 {[%clk 0:02:58]} 3... b6 {[%clk 0:02:57.7]} 4. g3
{[%clk 0:02:58.3]} 4... Bb7 {[%clk 0:02:58.3]} 5. Bg2 {[%clk 0:02:58.2]} 5...
Be7 {[%clk 0:02:58.6]} 6. O-O {[%clk 0:02:58.5]} 6... O-O {[%clk 0:02:59.3]} 7.
Nc3 {[%clk 0:02:58.7]} 7... Ne4 {[%clk 0:02:59.2]} 8. Bd2 {[%clk 0:02:57.8]}
8... Bf6 {[%clk 0:02:59.4]} 9. Qc2 {[%clk 0:02:57.8]} 9... Nxd2 {[%clk
0:02:58.8]} 10. Qxd2 {[%clk 0:02:57.9]} 10... d6 {[%clk 0:02:57.8]} 11. Rac1
{[%clk 0:02:52.5]} 11... g6 {[%clk 0:02:57]} 12. Rfd1 {[%clk 0:02:51.5]} 12...
Bg7 {[%clk 0:02:56.6]} 13. h4 {[%clk 0:02:44.3]} 13... Nd7 {[%clk 0:02:36.8]}
14. h5 {[%clk 0:02:43.5]} 14... gxh5 {[%clk 0:02:31.6]} 15. Qf4 {[%clk
0:02:34.1]} 15... Qf6 {[%clk 0:02:22.2]} 16. Qh4 {[%clk 0:02:06.6]} 16... Qg6
{[%clk 0:01:59.2]} 17. Qe7 {[%clk 0:01:52.2]} 17... Rad8 {[%clk 0:01:40.3]} 18.
Nh4 {[%clk 0:01:39.6]} 18... Qh6 {[%clk 0:01:40.3]} 19. Nf5 {[%clk 0:01:08.1]}
19... exf5 {[%clk 0:01:38.3]} 20. Bxb7 {[%clk 0:01:07.8]} 20... Bf6 {[%clk
0:01:31.5]} 21. Qe3 {[%clk 0:01:05.9]} 21... Qxe3 {[%clk 0:01:27.5]} 22. fxe3
{[%clk 0:01:06.3]} 22... Bg5 {[%clk 0:01:26.7]} 23. Rd3 {[%clk 0:01:04.6]} 23...
Nf6 {[%clk 0:01:20.3]} 24. Rf1 {[%clk 0:01:00.9]} 24... Ng4 {[%clk 0:01:20.5]}
25. Rxf5 {[%clk 0:00:52.9]} 25... Bxe3+ {[%clk 0:01:17.8]} 26. Kg2 {[%clk
0:00:52.5]} 26... Bc1 {[%clk 0:01:04.6]} 27. Rxh5 {[%clk 0:00:48.4]} 27... Rfe8
{[%clk 0:01:00.5]} 28. Kf3 {[%clk 0:00:33.9]} 28... Nf6 {[%clk 0:00:39.7]} 29.
Rf5 {[%clk 0:00:31.6]} 29... Kg7 {[%clk 0:00:35.3]} 30. b3 {[%clk 0:00:26.2]}
30... c5 {[%clk 0:00:34.2]} 31. e3 {[%clk 0:00:22.1]} 31... cxd4 {[%clk
0:00:30.3]} 32. exd4 {[%clk 0:00:21.6]} 32... Re1 {[%clk 0:00:29.8]} 33. Ne2
{[%clk 0:00:20.5]} 33... Re8 {[%clk 0:00:27.9]} 34. Nf4 {[%clk 0:00:21.1]} 34...
Bxf4 {[%clk 0:00:16]} 35. Rxf4 {[%clk 0:00:18.6]} 35... Rf1+ {[%clk 0:00:15]}
36. Kg2 {[%clk 0:00:19]} 36... Rxf4 {[%clk 0:00:15.6]} 37. gxf4 {[%clk
0:00:19.6]} 37... Re2+ {[%clk 0:00:15.9]} 38. Kf3 {[%clk 0:00:18.9]} 38... Rxa2
{[%clk 0:00:16.8]} 39. Re3 {[%clk 0:00:18]} 39... h5 {[%clk 0:00:14.1]} 40. Bc8
{[%clk 0:00:17.8]} 40... Kf8 {[%clk 0:00:13.4]} 41. Bf5 {[%clk 0:00:18.2]} 41...
a5 {[%clk 0:00:13.5]} 42. Kg3 {[%clk 0:00:16.8]} 42... Rd2 {[%clk 0:00:13.4]}
43. Kh4 {[%clk 0:00:16.4]} 43... Rxd4 {[%clk 0:00:11.7]} 44. Kg5 {[%clk
0:00:16.3]} 44... Ng8 {[%clk 0:00:11.4]} 45. Bd7 {[%clk 0:00:15.3]} 45... Kg7
{[%clk 0:00:07.3]} 46. Rg3 {[%clk 0:00:15.3]} 46... Kf8 {[%clk 0:00:03.6]} 47.
Re3 {[%clk 0:00:15.6]} 47... h4 {[%clk 0:00:02.3]} 48. Rf3 {[%clk 0:00:13]}
48... Kg7 {[%clk 0:00:02.6]} 49. Kxh4 {[%clk 0:00:12.4]} 49... Nf6 {[%clk
0:00:02.8]} 50. Bc6 {[%clk 0:00:12.9]} 50... Ne4 {[%clk 0:00:03]} 51. Kg4 {[%clk
0:00:11.5]} 51... Nc5 {[%clk 0:00:03.3]} 52. Rg3 {[%clk 0:00:11.6]} 52... Kf6
{[%clk 0:00:03.5]} 53. Rh3 {[%clk 0:00:11.5]} 53... Rd3 {[%clk 0:00:04]} 54.
Rh6+ {[%clk 0:00:11.9]} 54... Kg7 {[%clk 0:00:04.2]} 55. Rh5 {[%clk 0:00:10.7]}
55... Rxb3 {[%clk 0:00:04.4]} 56. Bd5 {[%clk 0:00:11.5]} 56... a4 {[%clk
0:00:03.8]} 57. Rg5+ {[%clk 0:00:10.8]} 57... Kf8 {[%clk 0:00:03.4]} 58. Rf5
{[%clk 0:00:11.5]} 58... a3 {[%clk 0:00:03.8]} 59. Rxf7+ {[%clk 0:00:11.9]}
59... Ke8 {[%clk 0:00:04.4]} 60. Ra7 {[%clk 0:00:12.8]} 60... Nd3 {[%clk
0:00:03.9]} 61. f5 {[%clk 0:00:11.6]} 61... Nb4 {[%clk 0:00:03.9]} 62. Be6
{[%clk 0:00:11]} 62... Re3 {[%clk 0:00:02.8]} 63. Kf4 {[%clk 0:00:10.8]} 63...
Re2 {[%clk 0:00:02.4]} 64. Rxa3 {[%clk 0:00:10.6]} 64... Ke7 {[%clk 0:00:02.3]}
65. Ra7+ {[%clk 0:00:10.9]} 65... Kd8 {[%clk 0:00:02.1]} 66. Kg5 {[%clk
0:00:09.9]} 66... Nd3 {[%clk 0:00:02.3]} 67. Rd7+ {[%clk 0:00:09.9]} 67... Ke8
{[%clk 0:00:01.2]} 68. Rxd6 {[%clk 0:00:10.8]} 68... Nc5 {[%clk 0:00:01.6]} 69.
Rxb6 {[%clk 0:00:10.2]} 69... Ke7 {[%clk 0:00:02.1]} 70. Bd5 {[%clk 0:00:09.8]}
70... Rf2 {[%clk 0:00:01]} 71. f6+ {[%clk 0:00:09.6]} 71... Kd7 {[%clk
0:00:01.5]} 72. Rc6 {[%clk 0:00:08.4]} 72... Nd3 {[%clk 0:00:01.3]} 73. Ra6
{[%clk 0:00:07.6]} 73... Ne5 {[%clk 0:00:01.6]} 74. Ra7+ {[%clk 0:00:07]} 74...
Kd6 {[%clk 0:00:01.6]} 75. f7 {[%clk 0:00:07.1]} 1-0